Workbook

Sheet Cover
A3: CAUSE No. 45461
A4: Indiana American Water Company
A5: Update to ATTACHMENT GDS-1 to reflect actual Acquisition Costs

Sheet Summary
A1: CAUSE No. 45461
A3: Indiana American Water acquisition of Wastewater One, DBA River's Edge Utility
A5: Summary Schedule
A7: Purchase of Asset | D7: 1.) | E7: 420000
A9: Inclusion of Acquisition Costs:
A10: Legal | E10: 102006
A11: Engineering Contract Services | E11: 18160
A12: Real Property Rants | E12: 7350
A13: Closing Costs and Document Fees | E13: 3776.12
D14: 2.) | E14: =SUM(E10:E13) -> 131292.12
A16: Total Asset Booked | D16: 3.) = 1.) + 2.) | E16: =+E7+E14 -> 551292.12

Sheet Journal Entry
A4: JOURNAL ENTRY REQUEST One Water Street, Camden, NJ 08102 (866) 777-8426
O7: Standard | P7: Description | Q7: Non-Standard | R7: Description | S7: Reserve/Write-Off | T7: Description | V7: Drop Down List
E8: BL Journal # : | I8: Document Type | J8: UA | O8: SA | P8: G/L Account Document | Q8: SY | R8: Adjustment Decument -Int | S8: SW | T8: JE Write-Offs | V8: SY
E9: Journal Entry Type | F9: Non-Standard | I9: SAP Journal # : | O9: SG | P9: JE Reversal | Q9: UA | R9: Acquisitions | V9: UA
E10: Company Code: | F10: 1010 - Indiana American | I10: Document Date | J10: 2021-09-30 | O10: SH | P10: Gen Tax Recurring JE
E11: Prepared By (Operating Unit): | F11: Julie Leystra | I11: Posting Date | J11: 2021-09-30 | O11: SI | P11: Income Tax Recurring JE
E12: Prepared By (SSC): | I12: Requested By (Operating Unit): | O12: SJ | P12: Income Tax Provision Accrual
I13: Approved By (SSC): | O13: SM | P13: GA Global Recurring JE
O14: SN | P14: Use Tax Reversals
E15: Quarter Impacted | F15: 3rd | J15: This is not a Reversing Entry | O15: SQ | P15: UPA Recurring JE
B16: Doc Header Text | O16: SR | P16: GA Recurring JE
B17: Z07 - Rivers Edge Acq | E17: 25 Character Maximum | I17: Validation totals between the two tabs | L17: 0 | M17: 0 | O17: SS | P17: Topside Reversals
B18: JOURNAL ENTRY DESCRIPTION: | O18: ST | P18: Topside - Z1 Ledger
B19: Record Rivers Edge Water and WW acquisition. Rivers Edge is an asset acquisition with a $424K purchase price with an additional $127K of acquisition costs as approved by the commission. The assets are recorded net and allocated to rate base/appraisal/purchase price of $551K. | O19: SV | P19: Reversing JE
O20: SX | P20: Adjustment Decument - Ext
B25: Please add rows as necessary to the table below in order to complete your requested journal entry. | K25: TOTAL | L25: 551292.12 | M25: 551292.12 | N25: True | Y25: 0
B26: Company Code | C26: GL Account | D26: Trading Partner | E26: Posting Key | F26: Explanation | G26: Cost Center | H26: Profit Center | I26: WBS Element | J26: Internal Order | K26: Assignment | L26: Debit Amount | M26: Credit Amount | P26: 1010 - Indiana American | S26: 1st
B27: 1010 | C27: 10400000 | E27: 50 | F27: reclass cash paid to asset value | H27: 1075 | M27: 254265.67 | N27: Utility Plant Purchased or Sold | P27: 1011 - Iowa American | S27: 2nd
A28: 1024 | B28: 1010 | C28: 10400000 | E28: 50 | F28: reclass cash paid to asset value | H28: 1076 | M28: 169510.45 | N28: Utility Plant Purchased or Sold | P28: 1012 - Kentucky American | S28: 3rd
A29: 1024 | B29: 1010 | C29: 53110000 | E29: 50 | F29: reclass acquisition costs to asset value | J29: 60004961 | M29: 18160 | N29: Contract Svc-Eng - Natural Account | P29: 1013 - Maryland American | S29: 4th
A30: 1024 | B30: 1010 | C30: 54110000 | E30: 50 | F30: reclass acquisition costs to asset value | J30: 60004961 | M30: 7350 | N30: Rents-Real Property - Natural Account | P30: 1014 - Bluefield Valley
A31: 1024 | B31: 1010 | C31: 53155000 | E31: 50 | F31: reclass acquisition costs to asset value | J31: 60008663 | M31: 102006 | N31: Contract Services - Legal | P31: 1015 - California American
A32: 1024 | B32: 1010 | C32: 10130320 | E32: 40 | F32: record net UPIS assets for Rivers Edge Water | H32: 1075 | L32: 6685 | N32: UPIS - Land & Land Rights - Source of Supply | P32: 1016 - Michigan American
A33: 1024 | B33: 1010 | C33: 10130350 | E33: 40 | F33: record net UPIS assets for Rivers Edge Water | H33: 1075 | L33: 129795 | N33: UPIS - Land & Land Rights - Transmission & Distrib | P33: 1017 - Missouri American
A34: 1024 | B34: 1010 | C34: 10130700 | E34: 40 | F34: record net UPIS assets for Rivers Edge Water | H34: 1075 | L34: 22897.43 | N34: UPIS - Wells & Springs | P34: 1018 - New Jersey American
A35: 1024 | B35: 1010 | C35: 10131150 | E35: 40 | F35: record net UPIS assets for Rivers Edge Water | H35: 1075 | L35: 1984.2 | N35: UPIS - Pumping Equipment - Other | P35: 1020 - American Water Works
A36: 1024 | B36: 1010 | C36: 10133100 | E36: 40 | F36: record net UPIS assets for Rivers Edge Water | H36: 1075 | L36: 47312.02 | N36: UPIS - Transmission & Distribution Mains | P36: 1021 - AWR
A37: 1024 | B37: 1010 | C37: 10133300 | E37: 40 | F37: record net UPIS assets for Rivers Edge Water | H37: 1075 | L37: 17923.56 | N37: UPIS - Services | P37: 1024 - Pennsylvania American
A38: 1024 | B38: 1010 | C38: 10133410 | E38: 40 | F38: record net UPIS assets for Rivers Edge Water | H38: 1075 | L38: 8770.8 | N38: UPIS - Meters | P38: 1025 - Illinois American
A39: 1024 | B39: 1010 | C39: 10133500 | E39: 40 | F39: record net UPIS assets for Rivers Edge Water | H39: 1075 | L39: 2255.05 | N39: UPIS - Hydrants | P39: 1026 - Tennessee American
A40: 1024 | B40: 1010 | C40: 10134500 | E40: 40 | F40: record net UPIS assets for Rivers Edge Water | H40: 1075 | L40: 33368.14 | N40: UPIS - Power Operated Equipment | P40: 1027 - Virginia American
A41: 1024 | B41: 1010 | C41: 10135340 | E41: 40 | F41: record net UPIS assets for Rivers Edge WW | H41: 1076 | L41: 84068.12 | N41: UPIS - WW Land & Land Rights - TDP | P41: 1028 - West Virginia American
A42: 1024 | B42: 1010 | C42: 10135420 | E42: 40 | F42: record net UPIS assets for Rivers Edge WW | H42: 1076 | L42: 6014.33 | N42: UPIS - WW Struct & Imp - Coll | P42: 1030 - Hawaii American
A43: 1024 | B43: 1010 | C43: 10135440 | E43: 40 | F43: record net UPIS assets for Rivers Edge WW | H43: 1076 | L43: 47515.18 | N43: UPIS - WW Struct & Imp - TDP | P43: 1033 - Service Company
A44: 1024 | B44: 1010 | C44: 10136110 | E44: 40 | F44: record net UPIS assets for Rivers Edge WW | H44: 1076 | L44: 133771.04 | N44: UPIS - WW Collecting Mains | P44: 1038 - New York American
A45: 1024 | B45: 1010 | C45: 10136300 | E45: 40 | F45: record net UPIS assets for Rivers Edge WW | H45: 1076 | L45: 8932.25 | N45: UPIS - WW Services Sewer | P45: 1044 - Illinois Lake Water
A46: 1024 | P46: 1051 - Etown Corp
A47: 1024 | P47: 1057 - Etown Properties
A48: 1024 | P48: 1046 - AWCC
A49: 1024 | P49: 1080 - Laurel Oak Property
P50: 1090 - Thames Water Holding
P51: 1091 - TW North America

Sheet Appraisal summary
A1: River's Edge Utility
A2: Utility Valuation
B3: PURCHASE PRICE | C3: 420000
B4: ACQUISTION COSTS (Est.) | C4: 131292
A5: Replacement Cost Depreciated | K5: Less: | M5: Adjusted | O5: Spread | Q5: Total
F6: Replacement Cost | H6: Current Value | K6: Reduce | M6: Asset Value | O6: of Est. | Q6: Appraised Value
H7: (Depreciated) | K7: value to | M7: to Match | O7: Acquisition | Q7: With Acquisition
A8: Description | C8: Subsidiary Account | D8: Units | E8: Qty | F8: Unit Price | G8: Total | H8: Bal Useful | I8: Total | K8: Purchase | M8: Purchase | O8: Costs | Q8: Transaction Costs
H9: Life | I9: =+I104 -> 1613201.9 | K9: =+C3-I104 -> -1193201.9 | M9: =+C3 -> 420000 | O9: =+'Acquisition costs'!O10 -> 131292.12 | Q9: =+Q104 -> 551292.02
A11: Original Water System - 1989
B12: Well House | C12: 307000 | D12: LS | E12: 1 | F12: 50000 | G12: =+F12*E12 -> 50000 | H12: 0.44 | I12: =+G12*H12 -> 22000 | K12: =ROUND((I12/$I$104)*$K$9,0) -> -16272 | M12: =+K12+I12 -> 5728 | O12: =+M12/$M$104*$O$9 -> 1790.574863 | Q12: =+M12+O12 -> 7518.574863
B13: Water Chlorination System | D13: LS | E13: 1 | F13: 28000 | G13: 28000 | H13: 0 | I13: 0 | K13: 0 | M13: 0 | O13: 0 | Q13: 0
B14: 3-inch PVC Water Main | C14: 331100 | D14: LF | E14: 10700 | F14: 20 | G14: 214000 | H14: 0.63 | I14: 134820 | K14: -99719 | M14: 35101 | O14: 10972.58524 | Q14: 46073.58524
B15: 2-inch PVC Water Main | C15: 331100 | D15: LF | E15: 250 | F15: 18 | G15: 4500 | H15: 0.63 | I15: 2835 | K15: -2097 | M15: 738 | O15: 230.6990658 | Q15: 968.6990658
B16: Water Meter (5/8") | C16: 334100 | D16: EA | E16: 27 | F16: 800 | G16: 21600 | H16: 0.44 | I16: 9504 | K16: -7030 | M16: 2474 | O16: 773.373291 | Q16: 3247.373291
B17: Service Lines | C17: 333000 | D17: EA | E17: 149 | F17: 800 | G17: 119200 | H17: 0.44 | I17: 52448 | K17: -38793 | M17: 13655 | O17: 4268.557918 | Q17: 17923.55792
B18: 3-inch Valves | C18: 331100 | D18: EA | E18: 6 | F18: 900 | G18: 5400 | H18: 0 | I18: 0 | K18: 0 | M18: 0 | O18: 0 | Q18: 0
B19: Flush Hydrants | C19: 335000 | D19: EA | E19: 5 | F19: 3000 | G19: 15000 | H19: 0.44 | I19: 6600 | K19: -4882 | M19: 1718 | O19: 537.0474187 | Q19: 2255.047419
B20: Water Supply Well | C20: 307000 | D20: EA | E20: 1 | F20: 50000 | G20: 50000 | H20: 0.44 | I20: 22000 | K20: -16272 | M20: 5728 | O20: 1790.574863 | Q20: 7518.574863
A22: System Improvements - 1990
B23: Water Supply Well | C23: 307000 | D23: EA | E23: 1 | F23: 50000 | G23: =+F23*E23 -> 50000 | H23: 0.46 | I23: =+G23*H23 -> 23000 | K23: =ROUND((I23/$I$104)*$K$9,0) -> -17012 | M23: =+K23+I23 -> 5988 | O23: =+M23/$M$104*$O$9 -> 1871.850957 | Q23: =+M23+O23 -> 7859.850957
A25: System Improvements - 2007
B26: Hydropneumatic Pressure Tanks | C26: 311500 | D26: EA | E26: 4 | F26: 1200 | G26: =+F26*E26 -> 4800 | H26: 0.6 | I26: =+G26*H26 -> 2880 | K26: =ROUND((I26/$I$104)*$K$9,0) -> -2130 | M26: =+K26+I26 -> 750 | O26: =+M26/$M$104*$O$9 -> 234.4502701 | Q26: =+M26+O26 -> 984.4502701
A28: System Improvements - 2011
B29: Chlorine Pumps | C29: 311500 | D29: LS | E29: 1 | F29: 3850 | G29: =+F29*E29 -> 3850 | H29: 0.76 | I29: =+G29*H29 -> 2926 | K29: =ROUND((I29/$I$104)*$K$9,0) -> -2164 | M29: =+K29+I29 -> 762 | O29: =+M29/$M$104*$O$9 -> 238.2014744 | Q29: =+M29+O29 -> 1000.201474
B30: Water Chlorination System Expansion | C30: 345000 | D30: LS | E30: 1 | F30: 5600 | G30: 5600 | H30: 0.76 | I30: 4256 | K30: -3148 | M30: 1108 | O30: 346.361199 | Q30: 1454.361199
B31: Water Well Pump w/Valve | C31: 345000 | D31: EA | E31: 1 | F31: 1920 | G31: 1920 | H31: 0.76 | I31: 1459.2 | K31: -1079 | M31: 380.2 | O31: 118.8506569 | Q31: 499.0506569
B32: Water Well Piping | C32: 345000 | D32: LS | E32: 1 | F32: 7850 | G32: 7850 | H32: 0.92 | I32: 7222 | K32: -5342 | M32: 1880 | O32: 587.6886771 | Q32: 2467.688677
B33: Lift Station Pump and Floats | C33: 345000 | D33: LS | E33: 1 | F33: 2200 | G33: 2200 | H33: 0.4 | I33: 880 | K33: -651 | M33: 229 | O33: 71.58548247 | Q33: 300.5854825
B34: Valve Guide w/ Crockmeter | C34: 345000 | D34: LS | E34: 1 | F34: 2200 | G34: 2200 | H34: 0.4 | I34: 880 | K34: -651 | M34: 229 | O34: 71.58548247 | Q34: 300.5854825
B35: Misc Pumps and Valves | C35: 345000 | D35: LS | E35: 1 | F35: 7200 | G35: 7200 | H35: 0.76 | I35: 5472 | K35: -4047 | M35: 1425 | O35: 445.4555132 | Q35: 1870.455513
B36: Generator Replacement | C36: 345000 | D36: LS | E36: 1 | F36: 9000 | G36: 9000 | H36: 0.7 | I36: 6300 | K36: -4660 | M36: 1640 | O36: 512.6645906 | Q36: 2152.664591
B37: Dosing Station Improvements | C37: 345000 | D37: EA | E37: 1 | F37: 600 | G37: 600 | H37: 0.76 | I37: 456 | K37: -337 | M37: 119 | O37: 37.19944286 | Q37: 156.1994429
B38: Misc Electrical Equipment | C38: 345000 | D38: LS | E38: 1 | F38: 8300 | G38: 8300 | H38: 0.76 | I38: 6308 | K38: -4666 | M38: 1642 | O38: 513.2897914 | Q38: 2155.289791
B39: Misc Valves and Piping | C39: 345000 | D39: LS | E39: 1 | F39: 6600 | G39: 6600 | H39: 0.92 | I39: 6072 | K39: -4491 | M39: 1581 | O39: 494.2211694 | Q39: 2075.221169
A41: System Improvements - 2012
B42: Chlorine Feed System | C42: 345000 | D42: LS | E42: 1 | F42: 5600 | G42: =+F42*E42 -> 5600 | H42: 0.8 | I42: =+G42*H42 -> 4480 | K42: =ROUND((I42/$I$104)*$K$9,0) -> -3314 | M42: =+K42+I42 -> 1166 | O42: =+M42/$M$104*$O$9 -> 364.4920199 | Q42: =+M42+O42 -> 1530.49202
B43: Valves | C43: 345000 | D43: LS | E43: 1 | F43: 830 | G43: 830 | H43: 0.93 | I43: 771.9 | K43: -571 | M43: 200.9 | O43: 62.80141235 | Q43: 263.7014124
B44: Lift Station Pumps | C44: 345000 | D44: LS | E44: 1 | F44: 19200 | G44: 19200 | H44: 0.5 | I44: 9600 | K44: -7101 | M44: 2499 | O44: 781.1883 | Q44: 3280.1883
B45: Pressure Switches W/ Controls | C45: 345000 | D45: LS | E45: 1 | F45: 2790 | G45: 2790 | H45: 0.5 | I45: 1395 | K45: -1032 | M45: 363 | O45: 113.4739307 | Q45: 476.4739307
B46: 3" PVC Water Main | C46: 331100 | D46: LS | E46: 1 | F46: 850 | G46: 850 | H46: 0.93 | I46: 790.5 | K46: -585 | M46: 205.5 | O46: 64.23937401 | Q46: 269.739374
B47: Water Meter (5/8") | C47: 334100 | D47: EA | E47: 13 | F47: 800 | G47: 10400 | H47: 0.5 | I47: 5200 | K47: -3846 | M47: 1354 | O47: 423.2608876 | Q47: 1777.260888
B48: Misc Repairs | C48: 345000 | D48: LS | E48: 1 | F48: 13220 | G48: 13220 | H48: 0.5 | I48: 6610 | K48: -4889 | M48: 1721 | O48: 537.9852198 | Q48: 2258.98522
A50: System Improvements - 2013
B51: Pumps (Non-specified) | C51: 345000 | D51: LS | E51: 1 | F51: 2000 | G51: =+F51*E51 -> 2000 | H51: 0.84 | I51: =+G51*H51 -> 1680 | K51: =ROUND((I51/$I$104)*$K$9,0) -> -1243 | M51: =+K51+I51 -> 437 | O51: =+M51/$M$104*$O$9 -> 136.6063574 | Q51: =+M51+O51 -> 573.6063574
B52: Electrical Controls | C52: 345000 | D52: LS | E52: 1 | F52: 500 | G52: =+F52*E52 -> 500 | H52: 0.84 | I52: =+G52*H52 -> 420 | K52: =ROUND((I52/$I$104)*$K$9,0) -> -311 | M52: =+K52+I52 -> 109 | O52: =+M52/$M$104*$O$9 -> 34.07343926 | Q52: =+M52+O52 -> 143.0734393
B53: Water Main Valves | C53: 345000 | D53: LS | E53: 1 | F53: 790 | G53: =+F53*E53 -> 790 | H53: 0.95 | I53: =+G53*H53 -> 750.5 | K53: =ROUND((I53/$I$104)*$K$9,0) -> -555 | M53: =+K53+I53 -> 195.5 | O53: =+M53/$M$104*$O$9 -> 61.11337041 | Q53: =+M53+O53 -> 256.6133704
B54: Water Meter (5/8") | C54: 334100 | D54: EA | E54: 1 | F54: 800 | G54: =+F54*E54 -> 800 | H54: 0.6 | I54: =+G54*H54 -> 480 | K54: =ROUND((I54/$I$104)*$K$9,0) -> -355 | M54: =+K54+I54 -> 125 | O54: =+M54/$M$104*$O$9 -> 39.07504502 | Q54: =+M54+O54 -> 164.075045
B55: Meter Set and Tap | C55: 345000 | D55: LS | E55: 1 | F55: 2340 | G55: =+F55*E55 -> 2340 | H55: 0.6 | I55: =+G55*H55 -> 1404 | K55: =ROUND((I55/$I$104)*$K$9,0) -> -1038 | M55: =+K55+I55 -> 366 | O55: =+M55/$M$104*$O$9 -> 114.4117318 | Q55: =+M55+O55 -> 480.4117318
A57: System Improvements - 2014
B58: Meter Set and Tap | C58: 345000 | D58: LS | E58: 1 | F58: 2180 | G58: =+F58*E58 -> 2180 | H58: 0.7 | I58: =+G58*H58 -> 1526 | K58: =ROUND((I58/$I$104)*$K$9,0) -> -1129 | M58: =+K58+I58 -> 397 | O58: =+M58/$M$104*$O$9 -> 124.102343 | Q58: =+M58+O58 -> 521.102343
B59: Misc Repairs | C59: 345000 | D59: LS | E59: 1 | F59: 9560 | G59: =+F59*E59 -> 9560 | H59: 0.7 | I59: =+G59*H59 -> 6692 | K59: =ROUND((I59/$I$104)*$K$9,0) -> -4950 | M59: =+K59+I59 -> 1742 | O59: =+M59/$M$104*$O$9 -> 544.5498274 | Q59: =+M59+O59 -> 2286.549827
B60: New Sample Taps | C60: 345000 | D60: LS | E60: 1 | F60: 530 | G60: =+F60*E60 -> 530 | H60: 0.7 | I60: =+G60*H60 -> 371 | K60: =ROUND((I60/$I$104)*$K$9,0) -> -274 | M60: =+K60+I60 -> 97 | O60: =+M60/$M$104*$O$9 -> 30.32223493 | Q60: =+M60+O60 -> 127.3222349
B61: Meter Pit, Ball Valve, Adaptor, Coupling, Steel Lid | C61: 345000 | D61: LS | E61: 1 | F61: 400 | G61: =+F61*E61 -> 400 | H61: 0.7 | I61: =+G61*H61 -> 280 | K61: =ROUND((I61/$I$104)*$K$9,0) -> -207 | M61: =+K61+I61 -> 73 | O61: =+M61/$M$104*$O$9 -> 22.81982629 | Q61: =+M61+O61 -> 95.81982629
A63: System Improvements - 2015
B64: Mound System | C64: 345000 | D64: LS | E64: 1 | F64: 2200 | G64: =+F64*E64 -> 2200 | H64: 0.96 | I64: =+G64*H64 -> 2112 | K64: =ROUND((I64/$I$104)*$K$9,0) -> -1562 | M64: =+K64+I64 -> 550 | O64: =+M64/$M$104*$O$9 -> 171.9301981 | Q64: =+M64+O64 -> 721.9301981
B65: 2-inch Joints | C65: 345000 | D65: EA | E65: 4 | F65: 560 | G65: =+F65*E65 -> 2240 | H65: 0.97 | I65: =+G65*H65 -> 2172.8 | K65: =ROUND((I65/$I$104)*$K$9,0) -> -1607 | M65: =+K65+I65 -> 565.8 | O65: =+M65/$M$104*$O$9 -> 176.8692838 | Q65: =+M65+O65 -> 742.6692838
B66: Meter Set, Change Meter, and Reset Valve | C66: 345000 | D66: LS | E66: 1 | F66: 1830 | G66: =+F66*E66 -> 1830 | H66: 0.8 | I66: =+G66*H66 -> 1464 | K66: =ROUND((I66/$I$104)*$K$9,0) -> -1083 | M66: =+K66+I66 -> 381 | O66: =+M66/$M$104*$O$9 -> 119.1007372 | Q66: =+M66+O66 -> 500.1007372
B67: Water Meter (5/8") | C67: 334100 | D67: EA | E67: 4 | F67: 800 | G67: =+F67*E67 -> 3200 | H67: 0.8 | I67: =+G67*H67 -> 2560 | K67: =ROUND((I67/$I$104)*$K$9,0) -> -1893 | M67: =+K67+I67 -> 667 | O67: =+M67/$M$104*$O$9 -> 208.5044402 | Q67: =+M67+O67 -> 875.5044402
B68: Misc Repairs | C68: 345000 | D68: LS | E68: 1 | F68: 5000 | G68: =+F68*E68 -> 5000 | H68: 0.8 | I68: =+G68*H68 -> 4000 | K68: =ROUND((I68/$I$104)*$K$9,0) -> -2959 | M68: =+K68+I68 -> 1041 | O68: =+M68/$M$104*$O$9 -> 325.4169749 | Q68: =+M68+O68 -> 1366.416975
A70: System Improvements - 2016
B71: Replacement of Well, Meters, and Pumps | C71: 345000 | D71: LS | E71: 1 | F71: 4100 | G71: =+F71*E71 -> 4100 | H71: 0.98 | I71: =+G71*H71 -> 4018 | K71: =ROUND((I71/$I$104)*$K$9,0) -> -2972 | M71: =+K71+I71 -> 1046 | O71: =+M71/$M$104*$O$9 -> 326.9799767 | Q71: =+M71+O71 -> 1372.979977
B72: Water Meter (5/8") | C72: 334100 | D72: EA | E72: 11 | F72: 800 | G72: =+F72*E72 -> 8800 | H72: 0.9 | I72: =+G72*H72 -> 7920 | K72: =ROUND((I72/$I$104)*$K$9,0) -> -5858 | M72: =+K72+I72 -> 2062 | O72: =+M72/$M$104*$O$9 -> 644.5819426 | Q72: =+M72+O72 -> 2706.581943
B73: Misc Repairs | C73: 345000 | D73: LS | E73: 1 | F73: 9550 | G73: =+F73*E73 -> 9550 | H73: 0.9 | I73: =+G73*H73 -> 8595 | K73: =ROUND((I73/$I$104)*$K$9,0) -> -6357 | M73: =+K73+I73 -> 2238 | O73: =+M73/$M$104*$O$9 -> 699.599606 | Q73: =+M73+O73 -> 2937.599606
A74: Original Wastewater System - 1989
B75: 6-inch PVC Force Main | C75: 361000 | D75: LF | E75: 1450 | F75: 30 | G75: =+F75*E75 -> 43500 | H75: 0.63 | I75: =+G75*H75 -> 27405 | K75: =ROUND((I75/$I$104)*$K$9,0) -> -20270 | M75: =+K75+I75 -> 7135 | O75: =+M75/$M$104*$O$9 -> 2230.40357 | Q75: =+M75+O75 -> 9365.40357
B76: 4-inch PVC Force Main | C76: 361000 | D76: LF | E76: 1100 | F76: 26 | G76: 28600 | H76: 0.63 | I76: =+G76*H76 -> 18018 | K76: -13327 | M76: 4691 | O76: 1466.408289 | Q76: 6157.408289
B77: 3-inch PVC Force Main | C77: 361000 | D77: LF | E77: 11000 | F77: 20 | G77: 220000 | H77: 0.63 | I77: =+G77*H77 -> 138600 | K77: -102515 | M77: 36085 | O77: 11280.184 | Q77: 47365.184
B78: 8-inch Sanitary Sewer | C78: 361100 | D78: LF | E78: 3500 | F78: 80 | G78: 280000 | H78: 0.63 | I78: =+G78*H78 -> 176400 | K78: -130474 | M78: 45926 | O78: 14356.48414 | Q78: 60282.48414
B79: Sanitary Manhole | C79: 361100 | D79: EA | E79: 9 | F79: 5500 | G79: 49500 | H79: 0.63 | I79: 31020 | K79: -22944 | M79: 8076 | O79: 2524.560509 | Q79: 10600.56051
B80: Sanitary Laterals | C80: 363000 | D80: LF | E80: 2700 | F80: 22 | G80: 59400 | H80: 0.44 | I80: 26136 | K80: -19331 | M80: 6805 | O80: 2127.245451 | Q80: 8932.245451
B81: Lift Station (Wetwell & Valve Vault Structures) | C81: 354200 | D81: EA | E81: 2 | F81: 10000 | G81: 20000 | H81: 0.44 | I81: =+G81*H81 -> 8800 | K81: -6509 | M81: 2291 | O81: 716.1674251 | Q81: 3007.167425
B82: 3,000 Gallon Septic Tank (Concrete Structure) | C82: 354200 | D82: EA | E82: 4 | F82: 5000 | G82: 20000 | H82: 0.44 | I82: =+G82*H82 -> 8800 | K82: -6509 | M82: 2291 | O82: 716.1674251 | Q82: 3007.167425
B83: Dosing Station (Concrete Structure) | C83: 354400 | D83: EA | E83: 2 | F83: 8000 | G83: 16000 | H83: 0.44 | I83: =+G83*H83 -> 7040 | K83: -5207 | M83: 1833 | O83: 572.9964601 | Q83: 2405.99646
B84: Mound System | C84: 354400 | D84: EA | E84: 3 | F84: 100000 | G84: 300000 | H84: 0.44 | I84: =+G84*H84 -> 132000 | K84: -97634 | M84: 34366 | O84: 10742.82398 | Q84: 45108.82398
F86: Total Replacement | G86: =SUM(G12:G84) -> 1763730 | H86: Total Value | I86: =SUM(I12:I84) -> 967829.9 | K86: =SUM(K10:K84) -> -715854 | M86: =SUM(M10:M84) -> 251975.9 | O86: =SUM(O10:O84) -> 78767.75709 | Q86: =SUM(Q10:Q84) -> 330743.6571
H87: Depreciated
A93: Summary of Land Values
E94: Indicated | F94: Indicated
B95: Parcel | D95: Acres | E95: Unit Value | F95: Value
B96: Utility Easement Land | C96: Water View | D96: 1.48 | E96: 70000 | F96: =+D96*E96 -> 103600 | I96: =+F96 -> 103600 | K96: =ROUND((I96/$I$104)*$K$9,0) -> -76628 | M96: =+K96+I96 -> 26972 | O96: =+M96/$M$104*$O$9 -> 8431.456914 | Q96: =+M96+O96 -> 35403.45691
B97: Utility Easement Land | C97: Water Access | D97: 2.79 | E97: 99000 | F97: =+D97*E97 -> 276210 | I97: =+F97 -> 276210 | K97: =ROUND((I97/$I$104)*$K$9,0) -> -204298 | M97: =+K97+I97 -> 71912 | O97: =+M97/$M$104*$O$9 -> 22479.7171 | Q97: =+M97+O97 -> 94391.7171
B98: Water Wells Land | D98: 1.99 | E98: 3800 | F98: =+E98*D98 -> 7562 | I98: =+F98 -> 7562 | K98: =ROUND((I98/$I$104)*$K$9,0) -> -5593 | M98: =+K98+I98 -> 1969 | O98: =+M98/$M$104*$O$9 -> 615.5101091 | Q98: =+M98+O98 -> 2584.510109
B99: Water Wells Land | F99: 12000 | I99: =+F99 -> 12000 | K99: =ROUND((I99/$I$104)*$K$9,0) -> -8876 | M99: =+K99+I99 -> 3124 | O99: =+M99/$M$104*$O$9 -> 976.5635251 | Q99: =+M99+O99 -> 4100.563525
B100: Septic Field | D100: 8.2 | E100: 30000 | F100: =+D100*E100 -> 246000 | I100: =+F100 -> 246000 | K100: =ROUND((I100/$I$104)*$K$9,0) -> -181953 | M100: =+K100+I100 -> 64047 | O100: =+M100/$M$104*$O$9 -> 20021.11527 | Q100: =+M100+O100 -> 84068.11527
B101: Total | F101: =SUM(F96:F100) -> 645372 | I101: =SUM(I96:I100) -> 645372 | K101: =SUM(K96:K100) -> -477348 | M101: =SUM(M96:M100) -> 168024 | O101: =SUM(O96:O100) -> 52524.36291 | Q101: =SUM(Q96:Q100) -> 220548.3629
B102: Rounded | F102: 646000
B104: TOTAL APPRAISED VALUE WITH LAND AND ASSETS | I104: =+I86+I101 -> 1613201.9 | K104: =+K86+K101 -> -1193202 | M104: =+K104+I104 -> 419999.9 | O104: =+O86+O101 -> 131292.12 | Q104: =+Q101+Q86 -> 551292.02
C106: Water
C107: Wastewater

Sheet Acquisition costs
O4: Costs per IO
N5: Costs per IO 60008663 | O5: 102006
N6: Costs per IO 60004961 | O6: 25510
N7: Costs expected to settle to IO | O7: 0
N8: Subtotal of IO | O8: =SUM(O5:O7) -> 127516
N9: Add'l Settlement Costs | O9: 3776.12
N10: Total | O10: =+O8+O9 -> 131292.12
O17: Preliminary | P17: Costs expected to settle | Q17: Total
N18: 53110000 | O18: 18160 | Q18: =+SUM(O18:P18) -> 18160
N19: 54110000 | O19: 7350 | Q19: =+SUM(O19:P19) -> 7350
N20: 53155000 | O20: 102006 | Q20: 102006
Q21: 0
Q22: 0
Q23: 0
Q24: 0
Q25: 0
Q26: 0
Q27: 0
Q28: 0
Q29: 0
Q30: 0
Q31: 0
Q32: 0
O33: =SUM(O18:O32) -> 127516 | P33: =SUM(P18:P32) -> 0 | Q33: 127516

Sheet APA
G1: Purchase Price | H1: 420000

Sheet Settlement Sheet
